fUST/lending_fUST_20250927
["ID","MTS","AMOUNT","RATE_DAILY","PERIOD"]
[387858353,1758931838262,-783.0,0.0003708,2]
[387858354,1758931838271,-4587.0,0.00037199,2]
[387858355,1758931838280,-675.573749,0.00038356,2]
[387858356,1758931838289,-371.50011352,0.00038535,2]
[387858357,1758931838299,-1694.39824463,0.00039224,2]
[387858358,1758931838308,-7371.00869369,0.00039498,2]
[387858359,1758931838317,-864.0,0.00039566,30]
[387858360,1758931838327,-150.0,0.00039703,2]
[387858361,1758931838336,-150.0,0.00039703,2]
[387858362,1758931838346,-150.0,0.00039747,2]
[387858363,1758931838355,-227.0,0.00039879,5]
[387858364,1758931838364,-200.0,0.00040276,120]
[387858365,1758931838373,-371.50011352,0.00041822,28]
[387858366,1758931838382,-166.95351002,0.00042358,26]
[387858367,1758931838392,-150.0,0.00042703,2]
[387858368,1758931838401,-1694.39824463,0.0004285,2]
[387858369,1758931838414,-1000.0,0.00043522,30]
[387858370,1758931838423,-675.573749,0.00043836,2]
[387858371,1758931838433,-500.0,0.00044657,60]
[387858372,1758931838443,-151.0,0.000451,25]
[387858373,1758931838451,-371.50011352,0.00045108,28]
[387858374,1758931838460,-500.0,0.00045753,60]
[387858375,1758931838469,-418.0607218,0.00046007,4]
[387858376,1758931838479,-3344.4857744,0.00046017,4]
[387858377,1758931838488,-480.0,0.00046027,30]
[387858378,1758931838498,-480.0,0.00046027,30]
[387858379,1758931838507,-480.0,0.00046027,30]
[387858380,1758931838516,-480.0,0.00046027,30]
[387858381,1758931838526,-480.0,0.00046027,30]
[387858382,1758931838535,-480.0,0.00046027,30]
[387858383,1758931838544,-292.47815799,0.00046027,30]
[387858384,1758931838554,-480.0,0.00046027,30]
[387858385,1758931838563,-233.71402077,0.00046027,30]
[387858386,1758931838573,-480.0,0.00046027,30]
[387858387,1758931838582,-480.0,0.00046027,30]
[387858388,1758931838591,-241.20120956,0.00046027,30]
[387858389,1758931838600,-480.0,0.00046027,30]
[387858390,1758931838609,-598.03734196,0.00046027,30]
[387858391,1758931838619,-480.0,0.00046027,30]
[387858392,1758931838628,-480.0,0.00046027,30]
[387858393,1758931838637,-499.45,0.00046027,30]
[387858394,1758931838647,-480.0,0.00046027,30]
[387858395,1758931838657,-480.0,0.00046027,30]
[387858396,1758931838667,-606.53,0.00046027,30]
[387858397,1758931838676,-480.0,0.00046027,30]
[387858398,1758931838686,-480.0,0.00046027,30]
[387858399,1758931838695,-480.0,0.00046027,30]
[387858400,1758931838707,-480.0,0.00046027,30]
[387858401,1758931838716,-1099.68,0.00046027,30]
[387858402,1758931838724,-480.0,0.00046027,30]
[387858403,1758931838734,-415.26726923,0.00046027,30]
[387858404,1758931838743,-480.0,0.00046027,30]
[387858405,1758931838752,-480.0,0.00046027,30]
[387858406,1758931838761,-480.0,0.00046027,30]
[387858407,1758931838771,-1147.9,0.00046027,30]
[387858408,1758931838780,-1064.79,0.00046027,30]
[387858409,1758931838789,-486.73046834,0.00046027,30]
[387858410,1758931838799,-480.0,0.00046027,30]
[387858411,1758931838808,-747.18,0.00046027,30]
[387858412,1758931838818,-480.0,0.00046027,30]
[387858413,1758931838827,-480.0,0.00046027,30]
[387858414,1758931838836,-480.0,0.00046027,30]
[387858415,1758931838846,-480.0,0.00046027,30]
[387858416,1758931838855,-480.0,0.00046027,30]
[387858417,1758931838864,-480.0,0.00046027,30]
[387858418,1758931838873,-1462.51,0.00046027,30]
[387858419,1758931838882,-480.0,0.00046027,30]
[387858420,1758931838891,-480.0,0.00046027,30]
[387858421,1758931838900,-480.0,0.00046027,30]
[387858422,1758931838909,-480.0,0.00046027,30]
[387858423,1758931838919,-641.87,0.00046027,30]
[387858424,1758931838928,-480.0,0.00046027,30]
[387858425,1758931838938,-480.0,0.00046027,30]
[387858426,1758931838948,-480.0,0.00046027,30]
[387858427,1758931838957,-480.0,0.00046027,30]
[387858428,1758931838967,-480.0,0.00046027,30]
[387858429,1758931838976,-480.0,0.00046027,30]
[387858430,1758931838986,-1214.82,0.00046027,30]
[387858431,1758931838995,-480.0,0.00046027,30]
[387858432,1758931839005,-480.0,0.00046027,30]
[387858433,1758931839014,-480.0,0.00046027,30]
[387858434,1758931839024,-480.0,0.00046027,30]
[387858435,1758931839034,-480.0,0.00046027,30]
[387858436,1758931839043,-480.0,0.00046027,30]
[387858437,1758931839053,-480.0,0.00046027,30]
[387858438,1758931839063,-480.0,0.00046027,30]
[387858439,1758931839072,-523.68,0.00046027,30]
[387858440,1758931839082,-1047.97,0.00046027,30]
[387858441,1758931839091,-480.0,0.00046027,30]
[387858442,1758931839100,-971.16,0.00046027,30]
[387858443,1758931839110,-480.0,0.00046027,30]
[387858444,1758931839119,-480.0,0.00046027,30]
[387858445,1758931839128,-853.87,0.00046027,30]
[387858446,1758931839137,-480.0,0.00046027,30]
[387858447,1758931839146,-480.0,0.00046027,30]
[387858448,1758931839156,-480.0,0.00046027,30]
[387858449,1758931839165,-358.39943823,0.00046027,30]
[387858450,1758931839175,-480.0,0.00046027,30]
[387858451,1758931839184,-480.0,0.00046027,30]
[387858452,1758931839193,-985.42,0.00046027,30]
[387858453,1758931839203,-1999.9,0.00046027,30]
[387858454,1758931839212,-480.0,0.00046027,30]
[387858455,1758931839221,-480.0,0.00046027,30]
[387858456,1758931839231,-480.0,0.00046027,30]
[387858457,1758931839241,-694.17,0.00046027,30]
[387858458,1758931839250,-1309.64,0.00046027,30]
[387858459,1758931839260,-480.0,0.00046027,30]
[387858460,1758931839269,-480.0,0.00046027,30]
[387858461,1758931839279,-480.0,0.00046027,30]
[387858462,1758931839288,-480.0,0.00046027,30]
[387858463,1758931839297,-506.55,0.00046027,30]
[387858464,1758931839306,-1015.97,0.00046027,30]
[387858465,1758931839315,-523.44842228,0.00046027,30]
[387858466,1758931839325,-480.0,0.00046027,30]
[387858467,1758931839334,-801.6,0.00046027,30]
[387858468,1758931839344,-480.0,0.00046027,30]
[387858469,1758931839353,-480.0,0.00046027,30]
[387858470,1758931839362,-480.0,0.00046027,30]
[387858471,1758931839372,-480.0,0.00046027,30]
[387858472,1758931839381,-480.0,0.00046027,30]
[387858473,1758931839391,-501.98,0.00046027,30]
[387858474,1758931839400,-480.0,0.00046027,30]
[387858475,1758931839414,-572.34,0.00046027,30]
[387858476,1758931839424,-480.000001,0.00046027,120]
[387858477,1758931839433,-480.0,0.00046027,30]
[387858478,1758931839442,-480.0,0.00046027,30]
[387858479,1758931839451,-880.49,0.00046027,30]
[387858480,1758931839460,-480.0,0.00046027,30]
[387858481,1758931839470,-216.30932107,0.00046027,30]
[387858482,1758931839479,-480.0,0.00046027,30]
[387858483,1758931839488,-480.0,0.00046027,30]
[387858484,1758931839497,-480.0,0.00046027,30]
[387858485,1758931839507,-480.0,0.00046027,30]
[387858486,1758931839516,-480.0,0.00046027,30]
[387858487,1758931839525,-516.1,0.00046027,30]
[387858488,1758931839535,-765.11,0.00046027,30]
[387858489,1758931839544,-560.56,0.00046027,30]
[387858490,1758931839553,-455.81273453,0.00046027,30]
[387858491,1758931839562,-1058.57671422,0.00046027,30]
[387858492,1758931839572,-480.0,0.00046027,30]
[387858493,1758931839581,-480.0,0.00046027,30]
[387858494,1758931839591,-480.0,0.00046027,30]
[387858495,1758931839600,-480.0,0.00046027,30]
[387858496,1758931839610,-498.55756355,0.00046027,30]
[387858497,1758931839619,-480.0,0.00046027,30]
[387858498,1758931839629,-480.0,0.00046027,30]
[387858499,1758931839638,-480.0,0.00046027,30]
[387858500,1758931839648,-498.02901879,0.00046027,30]
[387858501,1758931839658,-506.46440203,0.00046027,30]
[387858502,1758931839667,-487.57067147,0.00046027,30]
[387858503,1758931839676,-768.16,0.00046027,30]
[387858504,1758931839685,-480.0,0.00046027,30]
[387858505,1758931839695,-480.0,0.00046027,30]
[387858506,1758931839704,-480.0,0.00046027,30]
[387858507,1758931839713,-480.0,0.00046027,30]
[387858508,1758931839722,-153.76883024,0.00046027,30]
[387858509,1758931839731,-480.0,0.00046027,30]
[387858510,1758931839740,-497.35491606,0.00046027,30]
[387858511,1758931839750,-480.0,0.00046027,30]
[387858512,1758931839759,-480.0,0.00046027,30]
[387858513,1758931839768,-535.12928314,0.00046027,30]
[387858514,1758931839778,-480.0,0.00046027,30]
[387858515,1758931839787,-480.0,0.00046027,30]
[387858516,1758931839796,-533.64,0.00046027,30]
[387858517,1758931839806,-1366.15,0.00046027,30]
[387858518,1758931839815,-480.0,0.00046027,30]
[387858519,1758931839824,-500.0,0.00046027,30]
[387858520,1758931839834,-500.0,0.00046027,30]
[387858521,1758931839844,-500.0,0.00046027,30]
[387858522,1758931839853,-480.0,0.00046027,30]
[387858523,1758931839862,-500.0,0.00046027,30]
[387858524,1758931839871,-500.0,0.00046027,30]
[387858525,1758931839881,-211.36504728,0.00046027,30]
[387858526,1758931839890,-480.0,0.00046027,30]
[387858527,1758931839899,-1008.69,0.00046027,30]
[387858528,1758931839909,-480.0,0.00046027,30]
[387858529,1758931839918,-480.0,0.00046027,30]
[387858530,1758931839927,-480.0,0.00046027,30]
[387858531,1758931839936,-480.0,0.00046027,30]
[387858532,1758931839946,-545.16,0.00046027,30]
[387858533,1758931839956,-545.16,0.00046027,30]
[387858534,1758931839965,-480.0,0.00046027,30]
[387858535,1758931839973,-480.0,0.00046027,30]
[387858536,1758931839982,-480.0,0.00046027,30]
[387858537,1758931839992,-480.0,0.00046027,30]
[387858538,1758931840001,-480.0,0.00046027,30]
[387858539,1758931840010,-480.0,0.00046027,30]
[387858540,1758931840019,-480.0,0.00046027,30]
[387858541,1758931840028,-961.32,0.00046027,30]
[387858542,1758931840038,-529.38,0.00046027,30]
[387858543,1758931840047,-480.0,0.00046027,30]
[387858544,1758931840056,-480.0,0.00046027,30]
[387858545,1758931840066,-481.11833335,0.00046027,12]
[387858546,1758931840075,-480.0,0.00046027,30]
[387858547,1758931840084,-2103.06,0.00046027,30]
[387858548,1758931840093,-1138.42,0.00046027,30]
[387858549,1758931840102,-1891.6,0.00046027,30]
[387858550,1758931840111,-483.48193055,0.00046027,30]
[387858551,1758931840120,-480.0,0.00046027,30]
[387858552,1758931840130,-480.0,0.00046027,30]
[387858553,1758931840139,-1748.61,0.00046027,30]
[387858554,1758931840148,-480.0,0.00046027,30]
[387858555,1758931840158,-480.0,0.00046027,30]
[387858556,1758931840167,-480.0,0.00046027,30]
[387858557,1758931840176,-480.0,0.00046027,30]
[387858558,1758931840186,-480.0,0.00046027,30]
[387858559,1758931840195,-1014.65,0.00046027,30]
[387858560,1758931840204,-480.0,0.00046027,30]
[387858561,1758931840214,-690.89,0.00046027,30]
[387858562,1758931840224,-598.16,0.00046027,30]
[387858563,1758931840234,-481.94238549,0.00046027,30]
[387858564,1758931840244,-480.0,0.00046027,30]
[387858565,1758931840253,-480.0,0.00046027,30]
[387858566,1758931840262,-480.0,0.00046027,30]
[387858567,1758931840272,-480.0,0.00046027,30]
[387858568,1758931840282,-483.95,0.00046027,30]
[387858569,1758931840291,-480.0,0.00046027,30]
[387858570,1758931840301,-480.0,0.00046027,30]
[387858571,1758931840311,-1029.29,0.00046027,30]
[387858572,1758931840320,-480.0,0.00046027,30]
[387858573,1758931840330,-250.89735127,0.00046027,30]
[387858574,1758931840340,-480.0,0.00046027,30]
[387858575,1758931840349,-480.0,0.00046027,30]
[387858576,1758931840358,-3291.02,0.00046027,30]
[387858577,1758931840368,-571.33,0.00046027,30]
[387858578,1758931840377,-480.0,0.00046027,20]
[387858579,1758931840387,-480.0,0.00046027,30]
[387858580,1758931840397,-1772.96,0.00046027,30]
[387858581,1758931840406,-604.34,0.00046027,30]
[387858582,1758931840416,-480.0,0.00046027,30]
[387858583,1758931840425,-480.0,0.00046027,30]
[387858584,1758931840434,-480.0,0.00046027,30]
[387858585,1758931840444,-480.0,0.00046027,30]
[387858586,1758931840453,-480.0,0.00046027,30]
[387858587,1758931840463,-480.0,0.00046027,30]
[387858588,1758931840472,-156.7088709,0.00046027,30]
[387858589,1758931840481,-480.0,0.00046027,30]
[387858590,1758931840491,-480.0,0.00046027,30]
[387858591,1758931840500,-1382.47,0.00046027,30]
[387858592,1758931840510,-520.1848256,0.00046027,30]
[387858593,1758931840520,-480.0,0.00046027,30]
[387858594,1758931840530,-480.0,0.00046027,30]
[387858595,1758931840540,-480.0,0.00046027,30]
[387858596,1758931840549,-480.0,0.00046027,30]
[387858597,1758931840562,-480.0,0.00046027,30]
[387858598,1758931840572,-480.0,0.00046027,30]
[387858599,1758931840581,-480.0,0.00046027,30]
[387858600,1758931840591,-1069.13,0.00046027,30]
[387858601,1758931840600,-480.0,0.00046027,30]
[387858602,1758931840610,-480.0,0.00046027,30]
[387858603,1758931840620,-212.62,0.00046027,30]
[387858604,1758931840630,-622.73,0.00046027,30]
[387858605,1758931840639,-480.0,0.00046027,30]
[387858606,1758931840649,-480.0,0.00046027,30]
[387858607,1758931840659,-480.0,0.00046027,30]
[387858608,1758931840668,-480.0,0.00046027,30]
[387858609,1758931840678,-480.0,0.00046027,30]
[387858610,1758931840687,-865.78,0.00046027,30]
[387858611,1758931840855,-500.0,0.00046027,30]
[387858612,1758931840866,-480.0,0.00046027,30]
[387858613,1758931840875,-480.0,0.00046027,30]
[387858614,1758931840884,-480.0,0.00046027,30]
[387858615,1758931840894,-2497.39,0.00046027,30]
[387858616,1758931840904,-480.0,0.00046027,30]
[387858617,1758931840913,-480.0,0.00046027,30]
[387858618,1758931840922,-480.0,0.00046027,30]
[387858619,1758931840931,-480.0,0.00046027,30]
[387858620,1758931840940,-3990.68,0.00046027,30]
[387858621,1758931840950,-480.0,0.00046027,30]
[387858622,1758931840959,-480.0,0.00046027,30]
[387858623,1758931840968,-480.0,0.00046027,30]
[387858624,1758931840977,-480.0,0.00046027,30]
[387858625,1758931840987,-480.0,0.00046027,30]
[387858626,1758931840996,-623.66,0.00046027,30]
[387858627,1758931841005,-1497.79,0.00046027,30]
[387858628,1758931841015,-500.0,0.00046027,30]
[387858629,1758931841025,-480.0,0.00046027,30]
[387858630,1758931841034,-480.0,0.00046027,30]
[387858631,1758931841044,-480.0,0.00046027,30]
[387858632,1758931841053,-480.0,0.00046027,30]
[387858633,1758931841062,-480.0,0.00046027,30]
[387858634,1758931841071,-792.54,0.00046027,30]
[387858635,1758931841081,-480.0,0.00046027,30]
[387858636,1758931841092,-480.0,0.00046027,30]
[387858637,1758931841101,-480.0,0.00046027,30]
[387858638,1758931841110,-480.0,0.00046027,30]
[387858639,1758931841120,-480.0,0.00046027,30]
[387858640,1758931841130,-480.0,0.00046027,30]
[387858641,1758931841139,-480.0,0.00046027,30]
[387858642,1758931841149,-480.0,0.00046027,30]
[387858643,1758931841159,-480.0,0.00046027,30]
[387858644,1758931841168,-1571.66,0.00046027,30]
[387858645,1758931841178,-480.0,0.00046027,30]
[387858646,1758931841187,-480.0,0.00046027,30]
[387858647,1758931841197,-500.0,0.00046027,30]
[387858648,1758931841207,-500.0,0.00046027,30]
[387858649,1758931841217,-480.0,0.00046027,30]
[387858650,1758931841227,-1012.15,0.00046027,30]
[387858651,1758931841236,-480.0,0.00046027,30]
[387858652,1758931841245,-480.0,0.00046027,30]
[387858653,1758931841255,-582.02,0.00046027,30]
[387858654,1758931841265,-480.0,0.00046027,30]
[387858655,1758931841274,-1420.95,0.00046027,30]
[387858656,1758931841283,-480.0,0.00046027,30]
[387858657,1758931841293,-1415.9,0.00046027,30]
[387858658,1758931841303,-571.53,0.00046027,30]
[387858659,1758931841312,-480.0,0.00046027,30]
[387858660,1758931841322,-481.03107887,0.00046027,30]
[387858661,1758931841331,-480.0,0.00046027,30]
[387858662,1758931841340,-2218.96,0.00046027,30]
[387858663,1758931841351,-480.0,0.00046027,30]
[387858664,1758931841361,-480.0,0.00046027,30]
[387858665,1758931841370,-661.82,0.00046027,30]
[387858666,1758931841380,-711.54,0.00046027,30]
[387858667,1758931841390,-480.0,0.00046027,30]
[387858668,1758931841400,-608.9,0.00046027,30]
[387858669,1758931841412,-505.99461629,0.00046027,30]
[387858670,1758931841422,-1357.32,0.00046027,30]
[387858671,1758931841432,-3543.12,0.00046027,30]
[387858672,1758931841441,-480.0,0.00046027,30]
[387858673,1758931841451,-1098.48,0.00046027,30]
[387858674,1758931841461,-500.0,0.00046027,14]
[387858675,1758931841471,-480.0,0.00046027,30]
[387858676,1758931841480,-480.0,0.00046027,30]
[387858677,1758931841491,-480.0,0.00046027,30]
[387858678,1758931841500,-480.0,0.00046027,30]
[387858679,1758931841511,-1097.02,0.00046027,30]
[387858680,1758931841520,-480.0,0.00046027,30]
[387858681,1758931841530,-807.05,0.00046027,30]
[387858682,1758931841539,-480.0,0.00046027,30]
[387858683,1758931841549,-480.0,0.00046027,30]
[387858684,1758931841559,-480.0,0.00046027,30]
[387858685,1758931841568,-480.0,0.00046027,30]
[387858686,1758931841577,-480.0,0.00046027,30]
[387858687,1758931841588,-480.0,0.00046027,30]
[387858688,1758931841597,-480.0,0.00046027,30]
[387858689,1758931841607,-480.0,0.00046027,30]
[387858690,1758931841616,-1081.54,0.00046027,30]
[387858691,1758931841625,-480.0,0.00046027,30]
[387858692,1758931841634,-1000.0,0.00046027,30]
[387858693,1758931841644,-480.0,0.00046027,30]
[387858694,1758931841653,-480.0,0.00046027,30]
[387858695,1758931841663,-9971.98,0.00046027,30]
[387858696,1758931841673,-480.0,0.00046027,30]
[387858697,1758931841682,-237.78727799,0.00046027,2]
[387858698,1758931841691,-405.31287889,0.00046027,30]
[387858699,1758931841701,-649.55,0.00046027,30]
[387858700,1758931841710,-480.0,0.00046027,30]
[387858701,1758931841719,-4462.38,0.00046027,3]
[387858702,1758931841728,-10430.65,0.00046027,30]
[387858703,1758931841738,-489.48367359,0.00046027,30]
[387858704,1758931841748,-480.0,0.00046027,30]
[387858705,1758931841758,-480.0,0.00046027,30]
[387858706,1758931841767,-2702.06,0.00046027,30]
[387858707,1758931841777,-480.0,0.00046027,30]
[387858708,1758931841787,-480.0,0.00046027,30]
[387858709,1758931841796,-480.0,0.00046027,30]
[387858710,1758931841806,-480.0,0.00046027,30]
[387858711,1758931841815,-431.30274536,0.00046027,30]
[387858712,1758931841824,-480.0,0.00046027,30]
[387858713,1758931841834,-480.0,0.00046027,30]
[387858714,1758931841843,-480.0,0.00046027,30]
[387858715,1758931841852,-480.0,0.00046027,30]
[387858716,1758931841862,-480.0,0.00046027,30]
[387858717,1758931841871,-2055.04,0.00046027,30]
[387858718,1758931841880,-3405.64,0.00046027,30]
[387858719,1758931841889,-480.0,0.00046027,30]
[387858720,1758931841899,-480.0,0.00046027,30]
[387858721,1758931841909,-480.0,0.00046027,30]
[387858722,1758931841918,-524.82,0.00046027,30]
[387858723,1758931841928,-480.0,0.00046027,30]
[387858724,1758931841938,-480.0,0.00046027,30]
[387858725,1758931841947,-755.1,0.00046027,30]
[387858726,1758931841956,-642.28,0.00046027,30]
[387858727,1758931841965,-4483.5,0.00046027,30]
[387858728,1758931841975,-772.16,0.00046027,30]
[387858729,1758931841984,-480.0,0.00046027,30]
[387858730,1758931841993,-480.0,0.00046027,30]
[387858731,1758931842003,-480.0,0.00046027,30]
[387858732,1758931842012,-486.60845278,0.00046027,30]
[387858733,1758931842022,-760.25,0.00046027,30]
[387858734,1758931842031,-2365.79,0.00046027,30]
[387858735,1758931842040,-480.0,0.00046027,30]
[387858736,1758931842050,-811.62,0.00046027,30]
[387858737,1758931842059,-576.88,0.00046027,30]
[387858738,1758931842069,-679.43,0.00046027,30]
[387858739,1758931842078,-480.0,0.00046027,30]
[387858740,1758931842088,-811.86,0.00046027,30]
[387858741,1758931842097,-406.1370135,0.00046027,30]
[387858742,1758931842107,-480.0,0.00046027,30]
[387858743,1758931842116,-3497.99,0.00046027,30]
[387858744,1758931842125,-480.0,0.00046027,30]
[387858745,1758931842135,-546.05,0.00046027,30]
[387858746,1758931842144,-480.0,0.00046027,30]
[387858747,1758931842154,-480.0,0.00046027,30]
[387858748,1758931842163,-480.0,0.00046027,30]
[387858749,1758931842173,-480.0,0.00046027,30]
[387858750,1758931842182,-480.0,0.00046027,30]
[387858751,1758931842192,-2492.31,0.00046027,30]
[387858752,1758931842201,-480.0,0.00046027,30]
[387858753,1758931842211,-480.0,0.00046027,30]
[387858754,1758931842220,-981.92,0.00046027,30]
[387858755,1758931842229,-858.58,0.00046027,30]
[387858756,1758931842239,-480.0,0.00046027,30]
[387858757,1758931842249,-480.0,0.00046027,30]
[387858758,1758931842258,-536.78,0.00046027,30]
[387858759,1758931842267,-1743.2,0.00046027,30]
[387858760,1758931842277,-480.0,0.00046027,30]
[387858762,1758931842286,-480.0,0.00046027,30]
[387858764,1758931842296,-4717.61,0.00046027,30]
[387858766,1758931842305,-498.91346859,0.00046027,30]
[387858769,1758931842314,-480.0,0.00046027,30]
[387858771,1758931842324,-480.0,0.00046027,30]
[387858773,1758931842334,-480.0,0.00046027,30]
[387858775,1758931842343,-480.0,0.00046027,30]
[387858777,1758931842352,-480.0,0.00046027,30]
[387858779,1758931842361,-480.0,0.00046027,30]
[387858781,1758931842371,-480.0,0.00046027,30]
[387858783,1758931842380,-853.28,0.00046027,30]
[387858785,1758931842390,-480.0,0.00046027,30]
[387858787,1758931842400,-767.4,0.00046027,30]
[387858789,1758931842409,-842.14,0.00046027,30]
[387858791,1758931842419,-492.93308662,0.00046027,30]
[387858793,1758931842428,-480.0,0.00046027,30]
[387858795,1758931842438,-2623.9,0.00046027,30]
[387858797,1758931842447,-18460.88,0.00046027,30]
[387858799,1758931842456,-1203.55,0.00046027,30]
[387858801,1758931842466,-480.0,0.00046027,30]
[387858803,1758931842475,-1092.42,0.00046027,30]
[387858805,1758931842484,-480.0,0.00046027,30]
[387858807,1758931842494,-596.68,0.00046027,30]
[387858809,1758931842504,-5129.78,0.00046027,30]
[387858811,1758931842513,-869.5,0.00046027,30]
[387858813,1758931842522,-557.48,0.00046027,30]
[387858815,1758931842532,-750.93,0.00046027,30]
[387858817,1758931842541,-480.0,0.00046027,30]
[387858819,1758931842550,-480.0,0.00046027,30]
[387858821,1758931842559,-942.05,0.00046027,30]
[387858823,1758931842569,-428.76912212,0.00046027,30]
[387858824,1758931842579,-1759.3,0.00046027,30]
[387858825,1758931842588,-503.94,0.00046027,30]
[387858826,1758931842597,-9594.99,0.00046027,30]
[387858827,1758931842607,-1400.99,0.00046027,30]
[387858828,1758931842617,-480.0,0.00046027,30]
[387858829,1758931842626,-482.44430782,0.00046027,30]
[387858830,1758931842636,-620.78173293,0.00046027,30]
[387858831,1758931842645,-988.16,0.00046027,30]
[387858832,1758931842655,-1293.22,0.00046027,30]
[387858833,1758931842665,-480.0,0.00046027,30]
[387858834,1758931842674,-480.0,0.00046027,30]
[387858835,1758931842684,-480.0,0.00046027,30]
[387858836,1758931842693,-512.41,0.00046027,30]
[387858837,1758931842703,-1484.46,0.00046027,30]
[387858838,1758931842712,-480.0,0.00046027,30]
[387858839,1758931842722,-1648.98,0.00046027,30]
[387858840,1758931842731,-480.0,0.00046027,30]
[387858841,1758931842740,-1870.12,0.00046027,30]
[387858842,1758931842750,-480.0,0.00046027,30]
[387858843,1758931842759,-1799.49,0.00046027,30]
[387858844,1758931842770,-480.0,0.00046027,30]
[387858845,1758931842779,-480.0,0.00046027,30]
[387858846,1758931842789,-480.0,0.00046027,30]
[387858847,1758931842798,-2180.83,0.00046027,21]
[387858848,1758931842807,-1278.33,0.00046027,30]
[387858849,1758931842816,-929.02,0.00046027,30]
[387858850,1758931842826,-480.0,0.00046027,30]
[387858851,1758931842835,-7070.83,0.00046027,30]
[387858852,1758931842846,-480.0,0.00046027,30]
[387858853,1758931842855,-668.55,0.00046027,30]
[387858854,1758931842864,-2531.33,0.00046027,30]
[387858855,1758931842875,-480.0,0.00046027,30]
[387858856,1758931842894,-480.0,0.00046027,30]
[387858857,1758931842905,-495.78774201,0.00046027,30]
[387858858,1758931842915,-1838.84,0.00046027,30]
[387858859,1758931842928,-2097.19,0.00046027,30]
[387858860,1758931842949,-480.0,0.00046027,30]
[387858861,1758931842969,-1130.74,0.00046027,30]
[387858862,1758931842979,-1770.1,0.00046027,30]
[387858863,1758931842989,-480.0,0.00046027,30]
[387858864,1758931842999,-966.58,0.00046027,30]
[387858865,1758931843009,-2553.64,0.00046027,30]
[387858866,1758931843019,-1080.52,0.00046027,30]
[387858867,1758931843029,-2115.12,0.00046027,30]
[387858868,1758931843038,-480.0,0.00046027,30]
[387858869,1758931843048,-480.0,0.00046027,30]
[387858870,1758931843057,-1498.56,0.00046027,30]
[387858871,1758931843067,-480.0,0.00046027,30]
[387858872,1758931843077,-480.0,0.00046027,30]
[387858873,1758931843086,-480.0,0.00046027,30]
[387858874,1758931843096,-480.0,0.00046027,30]
[387858875,1758931843105,-480.0,0.00046027,30]
[387858876,1758931843114,-480.0,0.00046027,30]
[387858877,1758931843123,-480.0,0.00046027,30]
[387858878,1758931843132,-2085.3,0.00046027,30]
[387858879,1758931843142,-480.0,0.00046027,30]
[387858880,1758931843151,-2256.75,0.00046027,30]
[387858881,1758931843160,-480.0,0.00046027,30]
[387858882,1758931843170,-480.0,0.00046027,30]
[387858883,1758931843179,-480.0,0.00046027,30]
[387858884,1758931843188,-480.0,0.00046027,30]